bitfinex-derivatives/quotes_BNBF0:USTF0_20260114
["timestamp","ask_amount","ask_price","bid_price","bid_amount"]
[1768393337875,0.76791052,933.05,932.48,1.6029167]
[1768393338076,0.76791052,933.04,932.48,1.6029167]
[1768393338373,0.76791052,933.03,932.48,1.6029167]
[1768393338577,0.76791052,933.02,932.48,1.6029167]
[1768393338875,0.76791052,933.01,932.48,1.6029167]
[1768393339076,0.76791052,933.0,932.48,1.6029167]
[1768393339275,0.76791052,932.99,932.48,1.6029167]
[1768393339471,0.76791052,932.98,932.48,1.6029167]
[1768393339674,0.76791052,932.97,932.48,1.6029167]
[1768393339872,0.76791052,932.96,932.48,1.6029167]
[1768393340073,0.76791052,932.95,932.48,1.6029167]
[1768393340276,0.76791052,932.94,932.48,1.6029167]
[1768393340478,0.1864647,933.76,932.48,1.6029167]
[1768393340674,0.77048841,933.75,932.49,1.6029167]
[1768393340878,0.77048841,933.74,932.49,1.6029167]
[1768393341180,0.77048841,933.73,932.49,1.6029167]
[1768393341477,0.77048841,933.72,932.49,1.6029167]
[1768393341678,0.77048841,933.71,932.49,1.6029167]
[1768393341974,0.1864647,933.76,932.49,1.6029167]
[1768393341975,0.77048841,933.7,932.49,1.6029167]
[1768393342273,0.77048841,933.69,932.49,1.6029167]
[1768393342577,0.77048841,933.68,932.49,1.6029167]
[1768393342774,0.77048841,933.67,932.49,1.6029167]
[1768393342978,0.77048841,933.66,932.49,1.6029167]
[1768393343173,0.77048841,933.65,932.49,1.6029167]
[1768393343474,0.77048841,933.64,932.49,1.6029167]
[1768393343775,0.77048841,933.63,932.49,1.6029167]
[1768393343975,0.77048841,933.62,932.49,1.6029167]
[1768393344176,0.77048841,933.61,932.49,1.6029167]
[1768393344476,0.77048841,933.6,932.49,1.6029167]
[1768393344680,0.77048841,933.59,932.49,1.6029167]
[1768393344980,0.77048841,933.58,932.49,1.6029167]
[1768393345181,0.77048841,933.57,932.49,1.6029167]
[1768393345378,0.77048841,933.56,932.49,1.6029167]
[1768393345580,0.77048841,933.55,932.49,1.6029167]
[1768393345776,0.77048841,933.54,932.49,1.6029167]
[1768393345980,0.77048841,933.53,932.49,1.6029167]
[1768393346180,0.77048841,933.52,932.49,1.6029167]
[1768393346478,0.77048841,933.51,932.49,1.6029167]
[1768393346677,0.77048841,933.5,932.49,1.6029167]
[1768393346881,0.77048841,933.49,932.49,1.6029167]
[1768393347181,0.77048841,933.48,932.49,1.6029167]
[1768393347381,0.77048841,933.47,932.49,1.6029167]
[1768393347677,0.77048841,933.46,932.49,1.6029167]
[1768393347879,0.77048841,933.45,932.49,1.6029167]
[1768393348079,0.1864647,933.76,932.49,1.6029167]
[1768393348080,0.77048841,933.44,932.49,1.6029167]
[1768393348281,0.77048841,933.43,932.49,1.6029167]
[1768393348482,0.77048841,933.42,932.49,1.6029167]
[1768393348678,0.77048841,933.41,932.49,1.6029167]
[1768393348982,0.77048841,933.4,932.49,1.6029167]
[1768393349180,0.77048841,933.39,932.49,1.6029167]
[1768393349378,0.77048841,933.38,932.49,1.6029167]
[1768393349580,0.1864647,933.76,932.49,1.6029167]
[1768393350785,0.7704879,933.75,932.49,1.6029167]
[1768393351182,0.1864647,933.76,932.49,1.6029167]
[1768393353089,0.77048738,933.75,932.49,1.6029167]
[1768393353289,0.77048738,933.74,932.49,1.6029167]
[1768393353490,0.77048738,933.73,932.49,1.6029167]
[1768393353785,0.77048738,933.72,932.49,1.6029167]
[1768393353986,0.77048738,933.71,932.49,1.6029167]
[1768393354190,0.77048738,933.7,932.49,1.6029167]
[1768393354385,0.77048738,933.69,932.49,1.6029167]
[1768393354589,0.77048738,933.68,932.49,1.6029167]
[1768393354887,0.77048738,933.67,932.49,1.6029167]
[1768393355085,0.77048738,933.66,932.49,1.6029167]
[1768393355289,0.77048738,933.65,932.49,1.6029167]
[1768393355485,0.77048738,933.64,932.49,1.6029167]
[1768393355686,0.77048738,933.63,932.49,1.6029167]
[1768393355885,0.77048738,933.62,932.49,1.6029167]
[1768393356089,0.77048738,933.61,932.49,1.6029167]
[1768393356287,0.77048738,933.6,932.49,1.6029167]
[1768393356486,0.77048738,933.59,932.49,1.6029167]
[1768393356787,0.77048738,933.58,932.49,1.6029167]
[1768393356990,0.77048738,933.57,932.49,1.6029167]
[1768393357190,0.77048738,933.56,932.49,1.6029167]
[1768393357384,0.77048738,933.55,932.49,1.6029167]
[1768393357590,0.77048738,933.54,932.49,1.6029167]
[1768393357786,0.77048738,933.53,932.49,1.6029167]
[1768393357986,0.77048738,933.52,932.49,1.6029167]
[1768393358286,0.77048738,933.51,932.49,1.6029167]
[1768393358490,0.77048738,933.5,932.49,1.6029167]
[1768393358690,0.77048738,933.49,932.49,1.6029167]
[1768393358987,0.77048738,933.48,932.49,1.6029167]
[1768393359185,0.77048738,933.47,932.49,1.6029167]
[1768393359390,0.77048738,933.46,932.49,1.6029167]
[1768393359592,0.77048738,933.45,932.49,1.6029167]
[1768393359792,0.77048738,933.44,932.49,1.6029167]
[1768393360089,0.77048738,933.43,932.49,1.6029167]
[1768393360292,0.77048738,933.42,932.49,1.6029167]
[1768393360592,0.77048738,933.41,932.49,1.6029167]
[1768393360892,0.77048738,933.4,932.49,1.6029167]
[1768393361091,0.77048738,933.39,932.49,1.6029167]
[1768393361289,0.77048738,933.38,932.49,1.6029167]
[1768393361492,0.77048738,933.37,932.49,1.6029167]
[1768393361692,0.77048738,933.36,932.49,1.6029167]
[1768393361894,0.77048738,933.35,932.49,1.6029167]
[1768393362194,0.77048738,933.34,932.49,1.6029167]
[1768393362392,0.77048738,933.33,932.49,1.6029167]
[1768393362592,0.77048738,933.32,932.49,1.6029167]
[1768393362892,0.77048738,933.31,932.49,1.6029167]
[1768393363092,1.4,933.75,932.49,1.6029167]
[1768393363093,0.77048738,933.3,932.49,1.6029167]
[1768393363292,0.77048738,933.29,932.49,1.6029167]
[1768393363493,0.77048738,933.28,932.49,1.6029167]
[1768393363691,0.77048738,933.27,932.49,1.6029167]
[1768393363890,0.77048738,933.26,932.49,1.6029167]
[1768393364089,0.77048738,933.25,932.49,1.6029167]
[1768393364290,0.77048738,933.24,932.49,1.6029167]
[1768393364490,0.77048738,933.23,932.49,1.6029167]
[1768393364692,0.77105289,933.22,932.49,1.6029167]
[1768393364887,0.77105289,933.21,932.49,1.6029167]
[1768393365093,0.77105289,933.2,932.49,1.6029167]
[1768393365293,0.77105289,933.19,932.49,1.6029167]
[1768393365494,0.77105289,933.18,932.49,1.6029167]
[1768393365692,0.77105289,933.17,932.49,1.6029167]
[1768393365890,1.4,933.75,932.49,1.6029167]
[1768393366091,0.77105272,933.74,932.49,1.6029167]
[1768393366395,0.77105272,933.73,932.49,1.6029167]
[1768393366594,0.77105272,933.72,932.49,1.6029167]
[1768393366894,0.77105272,933.71,932.49,1.6029167]
[1768393367094,1.4,933.75,932.49,1.6029167]
[1768393367095,0.77105272,933.7,932.49,1.6029167]
[1768393367295,0.77105272,933.69,932.49,1.6029167]
[1768393367494,0.77105272,933.68,932.49,1.6029167]
[1768393367696,0.77105272,933.67,932.49,1.6029167]
[1768393367992,0.77105272,933.66,932.49,1.6029167]
[1768393368195,0.77105272,933.65,932.49,1.6029167]
[1768393368396,0.77105272,933.64,932.49,1.6029167]
[1768393368592,0.77105272,933.63,932.49,1.6029167]
[1768393368797,0.77105272,933.62,932.49,1.6029167]
[1768393368997,0.77105272,933.61,932.49,1.6029167]
[1768393369197,0.77105272,933.6,932.49,1.6029167]
[1768393369398,0.77105272,933.59,932.49,1.6029167]
[1768393369599,0.77105272,933.58,932.49,1.6029167]
[1768393369795,0.77105272,933.57,932.49,1.6029167]
[1768393369999,0.77105272,933.56,932.49,1.6029167]
[1768393370194,0.77105272,933.55,932.49,1.6029167]
[1768393370398,0.77105272,933.54,932.49,1.6029167]
[1768393370599,0.77105272,933.53,932.49,1.6029167]
[1768393370799,0.77105272,933.52,932.49,1.6029167]
[1768393371096,0.77105272,933.51,932.49,1.6029167]
[1768393371394,0.77105272,933.5,932.49,1.6029167]
[1768393371595,1.4,933.75,932.49,1.6029167]
[1768393371596,0.77105272,933.49,932.49,1.6029167]
[1768393371797,0.77105272,933.48,932.49,1.6029167]
[1768393372096,0.77105272,933.47,932.49,1.6029167]
[1768393372299,0.77105272,933.46,932.49,1.6029167]
[1768393372500,0.77105272,933.45,932.49,1.6029167]
[1768393372801,0.77105272,933.44,932.49,1.6029167]
[1768393373097,0.77105272,933.43,932.49,1.6029167]
[1768393373296,0.77105272,933.42,932.49,1.6029167]
[1768393373596,0.77105272,933.41,932.49,1.6029167]
[1768393373801,0.77105272,933.4,932.49,1.6029167]
[1768393374001,0.77105272,933.39,932.49,1.6029167]
[1768393374201,0.77105272,933.38,932.49,1.6029167]
[1768393374402,0.77105272,933.37,932.5,1.6029167]
[1768393374602,0.77105272,933.36,932.5,1.6029167]
[1768393374803,0.77105272,933.35,932.5,1.6029167]
[1768393374998,0.77105272,933.34,932.5,1.6029167]
[1768393375203,0.77105272,933.33,932.5,1.6029167]
[1768393375404,0.77105272,933.32,932.5,1.6029167]
[1768393375600,0.77105272,933.31,932.5,1.6029167]
[1768393375806,0.77105272,933.3,932.5,1.6029167]
[1768393376009,0.77105272,933.29,932.5,1.6029167]
[1768393376305,0.77105272,933.28,932.49,1.6029167]
[1768393376503,0.77105272,933.27,932.49,1.6029167]
[1768393376702,1.4,933.75,932.49,1.6029167]
[1768393377003,0.7709949,933.74,932.49,1.6029167]
[1768393377206,0.7709949,933.73,932.49,1.6029167]
[1768393377504,0.7709949,933.72,932.49,1.6029167]
[1768393377807,0.7709949,933.71,932.49,1.6029167]
[1768393378006,0.7709949,933.7,932.49,1.6029167]
[1768393378306,0.7709949,933.69,932.49,1.6029167]
[1768393378503,0.7709949,933.68,932.49,1.6029167]
[1768393378706,0.7709949,933.67,932.49,1.6029167]
[1768393379005,0.7709949,933.66,932.49,1.6029167]
[1768393379202,0.7709949,933.65,932.49,1.6029167]
[1768393379406,0.7709949,933.64,932.49,1.6029167]
[1768393379707,0.7709949,933.63,932.49,1.6029167]
[1768393380005,0.7709949,933.62,932.49,1.6029167]
[1768393380206,0.7709949,933.61,932.49,1.6029167]
[1768393380408,0.7709949,933.6,932.49,1.6029167]
[1768393380703,0.7709949,933.59,932.49,1.6029167]
[1768393380903,0.7709949,933.58,932.49,1.6029167]
[1768393381107,0.7709949,933.57,932.49,1.6029167]
[1768393381408,0.7709949,933.56,932.49,1.6029167]
[1768393381607,0.7709949,933.55,932.49,1.6029167]
[1768393381807,0.7709949,933.54,932.49,1.6029167]
[1768393382007,0.7709949,933.53,932.49,1.6029167]
[1768393382309,0.7709949,933.52,932.49,1.6029167]
[1768393382505,0.7709949,933.51,932.49,1.6029167]
[1768393382802,0.7709949,933.5,932.5,1.6029167]
[1768393383007,0.7709949,933.49,932.49,1.6029167]
[1768393383208,0.7709949,933.48,932.49,1.6029167]
[1768393383408,0.7709949,933.47,932.49,1.6029167]
[1768393383709,0.7709949,933.46,932.49,1.6029167]
[1768393383908,0.7709949,933.45,932.49,1.6029167]
[1768393384108,0.7709949,933.44,932.49,1.6029167]
[1768393384310,0.7709949,933.43,932.49,1.6029167]
[1768393384506,0.7709949,933.42,932.49,1.6029167]
[1768393384709,0.7709949,933.41,932.49,1.6029167]
[1768393384913,0.7709949,933.4,932.49,1.6029167]
[1768393385112,0.7709949,933.39,932.49,1.6029167]
[1768393385412,0.7709949,933.38,932.49,1.6029167]
[1768393385613,0.7709949,933.37,932.49,1.6029167]
[1768393385913,0.7709949,933.36,932.49,1.6029167]
[1768393386108,0.7709949,933.35,932.49,1.6029167]
[1768393386309,0.7709949,933.34,932.49,1.6029167]
[1768393386512,0.7709949,933.33,932.49,1.6029167]
[1768393386714,0.7709949,933.32,932.49,1.6029167]
[1768393387013,0.7709949,933.31,932.49,1.6029167]
[1768393387211,0.7709949,933.3,932.49,1.6029167]
[1768393387411,0.7709949,933.29,932.49,1.6029167]
[1768393387711,0.7709949,933.28,932.49,1.6029167]
[1768393387910,0.7709949,933.27,932.49,1.6029167]
[1768393388113,0.7709949,933.26,932.5,1.6029167]
[1768393388312,0.7709949,933.25,932.5,1.6029167]
[1768393388611,0.7709949,933.24,932.55,1.6029167]
[1768393388814,0.7709949,933.23,932.55,1.6029167]
[1768393389018,0.7709949,933.22,932.75,1.6029167]
[1768393389210,1.4,933.75,932.73,1.6029167]
[1768393389414,0.76922457,933.74,932.73,1.6029167]
[1768393389615,0.76922457,933.73,932.73,1.6029167]
[1768393389812,0.76922457,933.72,932.74,1.6029167]
[1768393390110,0.76922457,933.71,932.74,1.6029167]
[1768393390316,0.76922457,933.7,932.72,1.6029167]
[1768393390510,0.76922457,933.69,932.72,1.6029167]
[1768393390709,0.76922457,933.68,932.72,1.6029167]
[1768393391013,0.76922457,933.67,932.72,1.6029167]
[1768393391211,0.76922457,933.66,932.7,1.6029167]
[1768393391412,0.76922457,933.65,932.7,1.6029167]
[1768393391711,0.76922457,933.64,932.73,1.6029167]
[1768393391915,0.76922457,933.63,932.73,1.6029167]
[1768393392117,0.76922457,933.62,932.75,1.6029167]
[1768393392314,1.4,933.75,932.82,1.6029167]
[1768393392315,0.76922457,933.61,932.82,1.6029167]
[1768393392518,0.76922457,933.6,932.82,1.6029167]
[1768393392716,0.76922457,933.59,932.84,1.6029167]
[1768393393015,0.76922457,933.58,932.84,1.6029167]
[1768393393214,0.76922457,933.57,932.81,1.6029167]
[1768393393417,0.76922457,933.56,932.81,1.6029167]
[1768393393617,1.4,933.75,932.84,1.6029167]
[1768393393818,0.76721346,933.74,932.84,1.6029167]
[1768393394018,0.76721346,933.73,932.85,1.6029167]
[1768393394218,0.76721346,933.72,932.87,1.6029167]
[1768393394414,0.76721346,933.71,932.87,1.6029167]
[1768393394614,0.76721346,933.7,932.87,1.6029167]
[1768393394814,0.76721346,933.69,932.87,1.6029167]
[1768393395015,0.76721346,933.68,932.87,1.6029167]
[1768393395219,1.4,933.75,932.85,1.6029167]
[1768393395516,0.76611695,933.74,932.88,1.6029167]
[1768393395719,0.76611695,933.73,932.88,1.6029167]
[1768393396016,0.76611695,933.72,932.88,1.6029167]
[1768393396220,0.76611695,933.71,932.86,1.6029167]
[1768393396516,0.18634488,934.44,932.85,1.6029167]
[1768393396716,0.76572328,934.43,932.92,1.6029167]
[1768393396915,0.76572328,934.42,932.92,1.6029167]
[1768393397120,0.76572328,934.41,932.92,1.6029167]
[1768393397419,0.76572328,934.4,932.89,1.6029167]
[1768393397615,0.76572328,934.39,932.89,1.6029167]
[1768393397918,0.76572328,934.38,932.89,1.6029167]
[1768393398117,0.76572328,934.37,932.89,1.6029167]
[1768393398314,0.76572328,934.36,932.87,1.6029167]
[1768393398515,0.76572328,934.35,932.87,1.6029167]
[1768393398718,0.76488478,934.34,932.87,1.6029167]
[1768393399016,0.76488478,934.33,932.87,1.6029167]
[1768393399215,0.76488478,934.32,932.85,1.6029167]
[1768393399515,0.76488478,934.31,932.84,1.6029167]
[1768393399716,0.76488478,934.3,932.93,1.6029167]
[1768393399916,0.76488478,934.29,932.93,1.6029167]
[1768393400116,0.76488478,934.28,932.93,1.6029167]
[1768393400317,0.76488478,934.27,932.9,1.6029167]
[1768393400516,0.76488478,934.26,932.9,1.6029167]
[1768393400719,0.76488478,934.25,932.9,1.6029167]
[1768393400917,0.76488478,934.24,932.9,1.6029167]
[1768393401117,0.76488478,934.23,932.9,1.6029167]
[1768393401320,0.76488478,934.22,932.88,1.6029167]
[1768393401517,0.76488478,934.21,932.88,1.6029167]
[1768393401715,0.76488478,934.2,932.88,1.6029167]
[1768393401919,0.76488478,934.19,932.88,1.6029167]
[1768393402220,0.76488478,934.18,932.86,1.6029167]
[1768393402416,0.76488478,934.17,932.86,1.6029167]
[1768393402617,0.76488478,934.16,932.86,1.6029167]
[1768393402817,0.76488478,934.15,932.86,1.6029167]
[1768393403022,0.76488478,934.14,932.86,1.6029167]
[1768393403217,0.76488478,934.13,932.85,1.6029167]
[1768393403422,0.76488478,934.12,932.84,1.6029167]
[1768393403620,0.76488478,934.11,932.84,1.6029167]
[1768393403820,0.76488478,934.1,932.84,1.6029167]
[1768393404021,0.76488478,934.09,932.84,1.6029167]
[1768393404222,0.76488478,934.08,932.83,1.6029167]
[1768393404421,0.76488478,934.07,932.83,1.6029167]
[1768393404622,0.76488478,934.06,932.83,1.6029167]
[1768393404925,0.76488478,934.05,932.83,1.6029167]
[1768393405117,0.76488478,934.04,932.83,1.6029167]
[1768393405320,0.76488478,934.03,932.82,1.6029167]
[1768393405521,0.76488478,934.02,932.82,1.6029167]
[1768393405720,0.949,934.29,932.82,1.6029167]
[1768393405918,0.76265616,934.28,932.82,1.6029167]
[1768393406121,0.76265616,934.27,932.82,1.6029167]
[1768393406420,0.76265616,934.26,932.8,1.6029167]
[1768393406724,0.76265616,934.25,932.84,1.6029167]
[1768393406926,0.76265616,934.24,932.84,1.6029167]
[1768393407126,0.76265616,934.23,932.84,1.6029167]
[1768393407324,0.76265616,934.22,932.83,1.6029167]
[1768393407526,0.76265616,934.21,932.83,1.6029167]
[1768393407723,0.76265616,934.2,932.83,1.6029167]
[1768393407926,0.76265616,934.19,932.83,1.6029167]
[1768393408129,0.76265616,934.18,932.82,1.6029167]
[1768393408321,0.76265616,934.17,932.82,1.6029167]
[1768393408525,0.76265616,934.16,932.82,1.6029167]
[1768393408725,0.76265616,934.15,932.82,1.6029167]
[1768393409026,0.76265616,934.14,932.83,1.6029167]
[1768393409325,0.949,934.29,932.88,1.6029167]
[1768393409529,0.76183428,934.28,932.9,1.6029167]
[1768393409824,0.76183428,934.27,932.9,1.6029167]
[1768393410030,0.76183428,934.26,932.9,1.6029167]
[1768393410229,0.76183428,934.25,932.89,1.6029167]
[1768393410429,0.76183428,934.24,932.89,1.6029167]
[1768393410726,0.76183428,934.23,932.89,1.6029167]
[1768393411027,0.76183428,934.22,932.89,1.6029167]
[1768393411226,0.76183428,934.21,932.88,1.6029167]
[1768393411429,0.949,934.29,932.91,1.6029167]
[1768393411628,0.76145674,934.28,932.93,1.6029167]
[1768393411828,0.76145674,934.27,932.93,1.6029167]
[1768393412030,0.76145674,934.26,932.93,1.6029167]
[1768393412228,0.949,934.29,932.93,1.6029167]
[1768393412526,0.76127671,934.28,932.92,1.6029167]
[1768393412731,0.76127671,934.27,932.92,1.6029167]
[1768393412932,0.76127671,934.26,932.92,1.6029167]
[1768393413127,0.949,934.29,932.92,1.6029167]
[1768393413333,0.761284,934.28,932.91,1.6029167]
[1768393413534,0.761284,934.27,932.91,1.6029167]
[1768393413831,0.949,934.29,932.91,1.6029167]
[1768393414133,0.76114081,934.28,932.9,1.6029167]
[1768393414333,0.76114081,934.27,932.9,1.6029167]
[1768393414535,0.949,934.29,932.9,1.6029167]
[1768393414734,0.76103843,934.28,932.9,1.6029167]
[1768393414931,0.76103843,934.27,932.9,1.6029167]
[1768393415231,0.949,934.29,932.89,1.6029167]
[1768393415435,0.76096749,934.28,932.89,1.6029167]
[1768393415637,0.949,934.29,932.89,1.6029167]
[1768393415833,0.76096705,934.28,932.89,1.6029167]
[1768393416036,0.949,934.29,932.89,1.6029167]
[1768393416237,0.76096716,934.28,932.89,1.6029167]
[1768393416437,0.949,934.29,932.89,1.6029167]
[1768393416737,0.76092693,934.28,932.89,1.6029167]
[1768393417037,0.949,934.29,932.89,1.6029167]
[1768393417338,0.949,934.29,932.92,1.6029167]
[1768393417533,0.949,934.29,933.22,1.6029167]
[1768393418237,0.949,934.29,933.2,1.6029167]
[1768393419234,0.949,934.29,933.18,1.6029167]
[1768393419537,0.949,934.29,933.19,1.6029167]
[1768393420337,0.949,934.29,933.17,1.6029167]
[1768393421239,0.949,934.29,933.16,1.6029167]
[1768393422136,0.949,934.29,933.15,1.6029167]
[1768393422341,0.949,934.29,933.16,1.6029167]
[1768393423238,0.949,934.29,933.15,1.6029167]
[1768393424239,0.949,934.29,933.14,1.6029167]
[1768393424540,0.949,934.29,933.15,1.6029167]
[1768393425248,0.949,934.29,933.14,1.6029167]
[1768393426151,0.949,934.29,933.15,1.6029167]
[1768393428247,0.949,934.29,933.16,1.6029167]
[1768393429153,0.949,934.29,933.17,1.6029167]
[1768393429347,0.949,934.29,933.16,1.6029167]
[1768393430352,0.949,934.29,933.17,1.6029167]
[1768393431450,0.949,934.29,933.19,1.6029167]
[1768393432149,0.949,934.29,933.22,1.6029167]
[1768393433449,0.949,934.29,933.25,1.6029167]
[1768393434355,0.949,934.29,933.26,1.6029167]
[1768393435348,0.949,934.29,933.27,1.6029167]
[1768393436250,0.949,934.29,933.29,1.6029167]
[1768393437251,0.949,934.29,933.31,1.6029167]
[1768393438157,0.949,934.29,933.32,1.6029167]
[1768393439556,0.949,934.29,933.33,1.6029167]
[1768393439751,0.949,934.29,933.29,1.6029167]
[1768393440257,0.949,934.29,933.3,1.6029167]
[1768393441256,0.949,934.29,933.31,1.6029167]
[1768393441458,0.949,934.29,933.3,1.6029167]
[1768393442156,0.949,934.29,933.31,1.6029167]
[1768393443257,0.949,934.29,933.32,1.6029167]
[1768393444257,0.949,934.29,933.34,1.6029167]
[1768393445154,0.949,934.29,933.35,1.6029167]
[1768393446158,0.949,934.29,933.36,1.6029167]
[1768393447259,0.949,934.29,933.38,1.6029167]
[1768393448256,0.949,934.29,933.39,1.6029167]
[1768393449358,0.949,934.29,933.41,1.6029167]
[1768393450363,0.949,934.29,933.43,1.6029167]
[1768393451259,0.949,934.29,933.44,1.6029167]
[1768393451460,0.949,934.29,933.45,1.6029167]
[1768393452264,0.949,934.29,933.46,1.6029167]
[1768393453164,0.76460681,934.28,933.46,1.6029167]
[1768393453467,0.76460681,934.27,933.46,1.6029167]
[1768393453665,0.76460681,934.26,933.46,1.6029167]
[1768393453867,0.949,934.29,933.46,1.6029167]
[1768393454166,0.76489916,934.28,933.48,1.6029167]
[1768393454362,0.76489916,934.27,933.48,1.6029167]
[1768393454572,0.76489916,934.26,933.48,1.6029167]
[1768393454865,0.76489916,934.25,933.48,1.6029167]
[1768393455168,0.949,934.29,933.48,1.6029167]
[1768393455364,0.76532546,934.28,933.49,1.6029167]
[1768393455568,0.76532546,934.27,933.49,1.6029167]
[1768393455765,0.76532546,934.26,933.49,1.6029167]
[1768393456069,0.76532546,934.25,933.49,1.6029167]
[1768393456270,0.76532546,934.24,933.51,1.6029167]
[1768393456471,0.76532546,934.23,933.51,1.6029167]
[1768393456667,0.949,934.29,933.51,1.6029167]
[1768393456866,0.76556831,934.28,933.51,1.6029167]
[1768393457167,0.76556831,934.27,933.51,1.6029167]
[1768393457367,0.76556831,934.26,933.52,1.6029167]
[1768393457567,0.76556831,934.25,933.52,1.6029167]
[1768393457768,0.76556831,934.24,933.52,1.6029167]
[1768393457969,0.76556831,934.23,933.52,1.6029167]
[1768393458266,0.76556831,934.22,933.53,1.6029167]
[1768393458468,0.76556831,934.21,933.53,1.6029167]
[1768393458666,0.18625064,935.1,933.53,1.6029167]
[1768393458865,0.7659718,935.09,933.55,1.6029167]
[1768393459067,0.7659718,935.08,933.55,1.6029167]
[1768393459366,0.7659718,935.07,933.56,1.6029167]
[1768393459568,0.7659718,935.06,933.56,1.6029167]
[1768393459768,0.7659718,935.05,933.56,1.6029167]
[1768393459966,0.7659718,935.04,933.56,1.6029167]
[1768393460167,0.7659718,935.03,933.56,1.6029167]
[1768393460373,0.7659718,935.02,933.58,1.6029167]
[1768393460571,0.7659718,935.01,933.58,1.6029167]
[1768393460771,0.7659718,935.0,933.58,1.6029167]
[1768393460972,0.7659718,934.99,933.58,1.6029167]
[1768393461175,0.7659718,934.98,933.6,1.6029167]
[1768393461371,0.7659718,934.97,933.6,1.6029167]
[1768393461570,0.7659718,934.96,933.6,1.6029167]
[1768393461772,0.7659718,934.95,933.6,1.6029167]
[1768393462071,0.7659718,934.94,933.6,1.6029167]
[1768393462271,0.7659718,934.94,932.93,2.6715279]
[1768393462272,0.7659718,934.93,933.63,1.6029167]
[1768393462472,0.7659718,934.92,933.63,1.6029167]
[1768393462672,0.7659718,934.91,933.63,1.6029167]
[1768393462877,0.7659718,934.9,933.63,1.6029167]
[1768393463077,0.7659718,934.89,933.63,1.6029167]
[1768393463271,0.7659718,934.88,933.63,1.6029167]
[1768393463472,0.7659718,934.87,933.63,1.6029167]
[1768393463672,0.7659718,934.86,933.63,1.6029167]
[1768393463872,0.7659718,934.85,933.63,1.6029167]
[1768393464073,0.7659718,934.84,933.63,1.6029167]
[1768393464376,0.7659718,934.83,933.64,1.6029167]
[1768393464576,0.7659718,934.82,933.64,1.6029167]
[1768393464773,0.7659718,934.81,933.64,1.6029167]
[1768393464970,0.7659718,934.8,933.64,1.6029167]
[1768393465176,0.7659718,934.79,933.64,1.6029167]
[1768393465476,0.7659718,934.78,933.64,1.6029167]
[1768393465677,0.7659718,934.77,933.64,1.6029167]
[1768393465972,0.7659718,934.76,933.64,1.6029167]
[1768393466171,0.7659718,934.75,933.64,1.6029167]
[1768393466375,0.7659718,934.74,933.64,1.6029167]
[1768393466576,0.7659718,934.73,933.64,1.6029167]
[1768393466776,0.7659718,934.72,933.64,1.6029167]
[1768393466972,0.7659718,934.71,933.64,1.6029167]
[1768393467175,0.7659718,934.7,933.64,1.6029167]
[1768393467377,0.7659718,934.69,933.66,1.6029167]
[1768393467576,0.7659718,934.68,933.66,1.6029167]
[1768393467773,0.7659718,934.67,933.66,1.6029167]
[1768393467975,0.7659718,934.66,933.66,1.6029167]
[1768393468173,0.7659718,934.65,933.66,1.6029167]
[1768393468373,0.7659718,934.64,933.66,1.6029167]
[1768393468576,0.7659718,934.63,933.66,1.6029167]
[1768393468772,0.7659718,934.62,933.66,1.6029167]
[1768393468976,0.7659718,934.61,933.66,1.6029167]
[1768393469177,0.7659718,934.6,933.66,1.6029167]
[1768393469373,0.7659718,934.59,933.66,1.6029167]
[1768393469674,0.7659718,934.58,933.66,1.6029167]
[1768393469877,0.7659718,934.57,933.66,1.6029167]
[1768393470077,0.7659718,934.56,933.66,1.6029167]
[1768393470278,0.7659718,934.55,933.66,1.6029167]
[1768393470474,0.7659718,934.54,933.66,1.6029167]
[1768393470678,0.7659718,934.53,933.66,1.6029167]
[1768393470976,0.7659718,934.52,933.66,1.6029167]
[1768393471177,0.7659718,934.51,933.66,1.6029167]
[1768393471477,0.7659718,934.5,933.66,1.6029167]
[1768393471676,0.7659718,934.49,933.66,1.6029167]
[1768393471873,0.7659718,934.48,933.66,1.6029167]
[1768393472077,0.7659718,934.47,933.66,1.6029167]
[1768393472277,0.7659718,934.46,933.66,1.6029167]
[1768393472473,0.7659718,934.45,933.67,1.6029167]
[1768393472675,0.7659718,934.44,933.67,1.6029167]
[1768393472878,0.7659718,934.43,933.67,1.6029167]
[1768393473173,0.7659718,934.42,933.67,1.6029167]
[1768393473379,0.7659718,934.41,933.67,1.6029167]
[1768393473578,0.7659718,934.4,933.67,1.6029167]
[1768393473778,0.7659718,934.39,933.67,1.6029167]
[1768393473978,0.7659718,934.38,933.67,1.6029167]
[1768393474179,0.7659718,934.37,933.67,1.6029167]
[1768393474379,0.7659718,934.36,933.67,1.6029167]
[1768393474576,0.7659718,934.35,933.67,1.6029167]
[1768393474777,0.7659718,934.34,933.67,1.6029167]
[1768393474976,0.7659718,934.33,933.67,1.6029167]
[1768393475176,0.7659718,934.32,933.67,1.6029167]
[1768393475377,0.7659718,934.31,933.67,1.6029167]
[1768393475681,0.7659718,934.3,933.67,1.6029167]
[1768393475980,0.7659718,934.29,933.67,1.6029167]
[1768393476177,0.7659718,934.28,933.67,1.6029167]